fUST/lending_fUST_20250211
["ID","MTS","AMOUNT","RATE_DAILY","PERIOD"]
[352637204,1739212247477,-804.1,0.00012328,2]
[352637205,1739212247491,-500.0,0.00012328,2]
[352637206,1739212247504,-590.4,0.00012328,2]
[352637207,1739212247518,-5523.16,0.00012328,2]
[352637208,1739212247531,-1492.81,0.00012328,2]
[352637209,1739212247544,-500.0,0.00012328,2]
[352637210,1739212247558,-500.0,0.00012328,2]
[352637211,1739212247572,-519.17,0.00012328,2]
[352637212,1739212247587,-1960.12,0.00012328,2]
[352637213,1739212247601,-790.7,0.00012328,2]
[352637214,1739212247615,-500.0,0.00012328,2]
[352637215,1739212247629,-500.0,0.00012328,2]
[352637216,1739212247643,-7568.36,0.00012328,2]
[352637217,1739212247654,-819.41,0.00012328,2]
[352637218,1739212247665,-745.93,0.00012328,2]
[352637219,1739212247676,-694.34,0.00012328,2]
[352637220,1739212247687,-1287.45,0.00012328,2]
[352637221,1739212247698,-1421.92,0.00012328,2]
[352637222,1739212247708,-725.42,0.00012328,2]
[352637223,1739212247718,-519.1,0.00012328,2]
[352637224,1739212247728,-3345.59,0.00012328,2]
[352637225,1739212247738,-500.0,0.00012328,2]
[352637226,1739212247748,-1562.27,0.00012328,2]
[352637227,1739212247759,-597.04,0.00012328,2]
[352637228,1739212247768,-1519.61,0.00012328,2]
[352637229,1739212247778,-1134.73,0.00012328,2]
[352637230,1739212247787,-500.0,0.00012465,2]
[352637231,1739212247797,-500.0,0.00012465,2]
[352637232,1739212247807,-500.0,0.00012465,2]
[352637233,1739212247817,-500.0,0.00012465,2]
[352637234,1739212247827,-629.32,0.00012465,2]
[352637235,1739212247837,-500.0,0.00012465,2]
[352637236,1739212247847,-500.0,0.00012465,2]
[352637237,1739212247857,-500.0,0.00012465,2]
[352637238,1739212247867,-13922.83,0.00012465,2]
[352637239,1739212247877,-804.1,0.00012465,2]
[352637240,1739212247886,-500.0,0.00012465,2]
[352637241,1739212247896,-590.4,0.00012465,2]
[352637242,1739212248077,-5523.16,0.00012465,2]
[352637243,1739212248095,-1492.81,0.00012465,2]
[352637244,1739212248106,-160.07,0.00012465,2]
[352637245,1739212248117,-500.0,0.00012465,2]
[352637246,1739212248128,-519.17,0.00012465,2]
[352637247,1739212248138,-1960.12,0.00012465,2]
[352637248,1739212248147,-790.7,0.00012465,2]
[352637249,1739212248157,-500.0,0.00012465,2]
[352637250,1739212248167,-500.0,0.00012465,2]
[352637251,1739212248177,-7568.36,0.00012465,2]
[352637252,1739212248187,-819.41,0.00012465,2]
[352637253,1739212248197,-745.93,0.00012465,2]
[352637254,1739212248206,-694.34,0.00012465,2]
[352637255,1739212248216,-1287.45,0.00012465,2]
[352637256,1739212248226,-1421.92,0.00012465,2]
[352637257,1739212248236,-725.42,0.00012465,2]
[352637258,1739212248246,-519.1,0.00012465,2]
[352637259,1739212248255,-3345.59,0.00012465,2]
[352637260,1739212248265,-500.0,0.00012465,2]
[352637261,1739212248275,-1562.27,0.00012465,2]
[352637262,1739212248286,-597.04,0.00012465,2]
[352637263,1739212248297,-1519.61,0.00012465,2]
[352637264,1739212248307,-1134.73,0.00012465,2]
[352637265,1739212248318,-500.0,0.00012522,2]
[352637266,1739212248328,-500.0,0.00012555,2]
[352637267,1739212248338,-500.0,0.00012602,3]
[352637268,1739212248349,-500.0,0.00012602,3]
[352637269,1739212248359,-500.0,0.00012602,2]
[352637270,1739212248370,-500.0,0.00012602,2]
[352637271,1739212248381,-500.0,0.00012602,2]
[352637272,1739212248392,-500.0,0.00012602,2]
[352637273,1739212248404,-629.32,0.00012602,2]
[352637274,1739212248413,-500.0,0.00012602,2]
[352637275,1739212248423,-500.0,0.00012602,2]
[352637276,1739212248433,-500.0,0.00012602,2]
[352637277,1739212248444,-13922.83,0.00012602,2]
[352637278,1739212248454,-804.1,0.00012602,2]
[352637279,1739212248465,-609.44,0.00012602,2]
[352637280,1739212248474,-590.4,0.00012602,2]
[352637281,1739212248485,-5523.16,0.00012602,2]
[352637282,1739212248495,-1492.81,0.00012602,2]
[352637283,1739212248507,-500.0,0.00012602,2]
[352637284,1739212248518,-519.17,0.00012602,2]
[352637285,1739212248528,-1960.12,0.00012602,2]
[352637286,1739212248538,-790.7,0.00012602,2]
[352637287,1739212248549,-500.0,0.00012602,2]
[352637288,1739212248559,-500.0,0.00012602,2]
[352637289,1739212248569,-7568.36,0.00012602,2]
[352637290,1739212248580,-819.41,0.00012602,2]
[352637291,1739212248590,-745.93,0.00012602,2]
[352637292,1739212248601,-694.34,0.00012602,2]
[352637293,1739212248612,-1287.45,0.00012602,2]
[352637294,1739212248623,-1421.92,0.00012602,2]
[352637295,1739212248635,-725.42,0.00012602,2]
[352637296,1739212248646,-519.1,0.00012602,2]
[352637297,1739212248659,-3345.59,0.00012602,2]
[352637298,1739212248671,-500.0,0.00012602,2]
[352637299,1739212248684,-1562.27,0.00012602,2]
[352637300,1739212248697,-597.04,0.00012602,2]
[352637301,1739212248707,-1519.61,0.00012602,2]
[352637302,1739212248717,-1134.73,0.00012602,2]
[352637303,1739212248729,-500.0,0.00012739,2]
[352637304,1739212248742,-500.0,0.00012739,2]
[352637305,1739212248752,-500.0,0.00012739,2]
[352637306,1739212248764,-500.0,0.00012739,2]
[352637307,1739212248775,-629.32,0.00012739,2]
[352637308,1739212248787,-500.0,0.00012739,2]
[352637309,1739212248799,-500.0,0.00012739,2]
[352637310,1739212248809,-500.0,0.00012739,2]
[352637311,1739212248828,-13922.83,0.00012739,2]
[352637312,1739212248838,-804.1,0.00012739,2]
[352637313,1739212248848,-590.4,0.00012739,2]
[352637314,1739212248860,-5523.16,0.00012739,2]
[352637315,1739212248870,-1492.81,0.00012739,2]
[352637316,1739212248881,-500.0,0.00012739,2]
[352637317,1739212248891,-519.17,0.00012739,2]
[352637318,1739212248901,-1960.12,0.00012739,2]
[352637319,1739212248912,-790.7,0.00012739,2]
[352637320,1739212248922,-500.0,0.00012739,2]
[352637321,1739212248932,-500.0,0.00012739,2]
[352637322,1739212248942,-7568.36,0.00012739,2]
[352637323,1739212248952,-819.41,0.00012739,2]
[352637324,1739212248963,-745.93,0.00012739,2]
[352637325,1739212248973,-694.34,0.00012739,2]
[352637326,1739212248983,-1287.45,0.00012739,2]
[352637327,1739212248994,-1421.92,0.00012739,2]
[352637328,1739212249005,-725.42,0.00012739,2]
[352637329,1739212249016,-519.1,0.00012739,2]
[352637330,1739212249028,-3345.59,0.00012739,2]
[352637331,1739212249038,-500.0,0.00012739,2]
[352637332,1739212249050,-1562.27,0.00012739,2]
[352637333,1739212249060,-597.04,0.00012739,2]
[352637334,1739212249071,-1519.61,0.00012739,2]
[352637335,1739212249080,-1134.73,0.00012739,2]
[352637336,1739212249090,-596.42671123,0.00012875,2]
[352637337,1739212249101,-500.0,0.00012876,2]
[352637338,1739212249111,-500.0,0.00012876,2]
[352637339,1739212249121,-500.0,0.00012876,2]
[352637340,1739212249130,-500.0,0.00012876,2]
[352637341,1739212249140,-629.32,0.00012876,2]
[352637342,1739212249150,-500.0,0.00012876,2]
[352637343,1739212249160,-500.0,0.00012876,2]
[352637344,1739212249170,-500.0,0.00012876,2]
[352637345,1739212249179,-13922.83,0.00012876,2]
[352637346,1739212249189,-804.1,0.00012876,2]
[352637347,1739212249199,-590.4,0.00012876,2]
[352637348,1739212249209,-5523.16,0.00012876,2]
[352637349,1739212249219,-1492.81,0.00012876,2]
[352637350,1739212249228,-195.7063667,0.00012876,2]
[352637351,1739212249237,-519.17,0.00012876,2]
[352637352,1739212249247,-1960.12,0.00012876,2]
[352637353,1739212249259,-790.7,0.00012876,2]
[352637354,1739212249268,-500.0,0.00012876,2]
[352637355,1739212249278,-500.0,0.00012876,2]
[352637356,1739212249288,-7568.36,0.00012876,2]
[352637357,1739212249299,-819.41,0.00012876,2]
[352637358,1739212249308,-745.93,0.00012876,2]
[352637359,1739212249317,-694.34,0.00012876,2]
[352637360,1739212249327,-1287.45,0.00012876,2]
[352637361,1739212249335,-1421.92,0.00012876,2]
[352637362,1739212249345,-725.42,0.00012876,2]
[352637363,1739212249355,-519.1,0.00012876,2]
[352637364,1739212249365,-3345.59,0.00012876,2]
[352637365,1739212249374,-500.0,0.00012876,2]
[352637366,1739212249384,-1562.27,0.00012876,2]
[352637367,1739212249394,-597.04,0.00012876,2]
[352637368,1739212249405,-1519.61,0.00012876,2]
[352637369,1739212249414,-1134.73,0.00012876,2]
[352637370,1739212249425,-151.0,0.000129,2]
[352637371,1739212249435,-708.9544464,0.00013,2]
[352637372,1739212249446,-500.0,0.00013013,2]
[352637373,1739212249456,-500.0,0.00013013,2]
[352637374,1739212249467,-500.0,0.00013013,2]
[352637375,1739212249484,-500.0,0.00013013,2]
[352637376,1739212249494,-629.32,0.00013013,2]
[352637377,1739212249504,-500.0,0.00013013,2]
[352637378,1739212249514,-500.0,0.00013013,2]
[352637379,1739212249524,-13922.83,0.00013013,2]
[352637380,1739212249534,-804.1,0.00013013,2]
[352637381,1739212249546,-590.4,0.00013013,2]
[352637382,1739212249557,-5523.16,0.00013013,2]
[352637383,1739212249567,-1492.81,0.00013013,2]
[352637384,1739212249576,-519.17,0.00013013,2]
[352637385,1739212249586,-1960.12,0.00013013,2]
[352637386,1739212249596,-790.7,0.00013013,2]
[352637387,1739212249606,-500.0,0.00013013,2]
[352637388,1739212249616,-500.0,0.00013013,2]
[352637389,1739212249626,-7568.36,0.00013013,2]
[352637390,1739212249636,-819.41,0.00013013,2]
[352637391,1739212249646,-745.93,0.00013013,2]
[352637392,1739212249656,-694.34,0.00013013,2]
[352637393,1739212249666,-1287.45,0.00013013,2]
[352637394,1739212249675,-1421.92,0.00013013,2]
[352637395,1739212249685,-725.42,0.00013013,2]
[352637396,1739212249701,-519.1,0.00013013,2]
[352637397,1739212249711,-3345.59,0.00013013,2]
[352637398,1739212249720,-500.0,0.00013013,2]
[352637399,1739212249730,-1562.27,0.00013013,2]
[352637400,1739212249739,-151.0,0.00013013,2]
[352637401,1739212249749,-597.04,0.00013013,2]
[352637402,1739212249759,-1519.61,0.00013013,2]
[352637403,1739212249769,-1134.73,0.00013013,2]
[352637404,1739212249779,-500.0,0.0001315,2]
[352637405,1739212249788,-500.0,0.0001315,2]
[352637406,1739212249799,-500.0,0.0001315,2]
[352637407,1739212249809,-500.0,0.0001315,2]
[352637408,1739212249819,-629.32,0.0001315,2]
[352637409,1739212249829,-500.0,0.0001315,2]
[352637410,1739212249840,-500.0,0.0001315,2]
[352637411,1739212249849,-13922.83,0.0001315,2]
[352637412,1739212249859,-804.1,0.0001315,2]
[352637413,1739212249869,-590.4,0.0001315,2]
[352637414,1739212249879,-5523.16,0.0001315,2]
[352637415,1739212249890,-1492.81,0.0001315,2]
[352637416,1739212249899,-519.17,0.0001315,2]
[352637417,1739212249908,-1960.12,0.0001315,2]
[352637418,1739212249918,-790.7,0.0001315,2]
[352637419,1739212249928,-168.58,0.0001315,2]
[352637420,1739212249938,-500.0,0.0001315,2]
[352637421,1739212249948,-7568.36,0.0001315,2]
[352637422,1739212249958,-819.41,0.0001315,2]
[352637423,1739212249967,-745.93,0.0001315,2]
[352637424,1739212249977,-694.34,0.0001315,2]
[352637425,1739212249987,-1287.45,0.0001315,2]
[352637426,1739212249997,-1421.92,0.0001315,2]
[352637427,1739212250007,-725.42,0.0001315,2]
[352637428,1739212250017,-519.1,0.0001315,2]
[352637429,1739212250029,-3345.59,0.0001315,2]
[352637430,1739212250038,-281.09,0.0001315,2]
[352637431,1739212250049,-1562.27,0.0001315,2]
[352637432,1739212250059,-597.04,0.0001315,2]
[352637433,1739212250069,-1519.61,0.0001315,2]
[352637434,1739212250079,-1134.73,0.0001315,2]
[352637435,1739212250088,-300.0,0.00013231,2]
[352637436,1739212250097,-500.0,0.00013287,2]
[352637437,1739212250107,-500.0,0.00013287,2]
[352637438,1739212250116,-500.0,0.00013287,2]
[352637439,1739212250126,-500.0,0.00013287,2]
[352637440,1739212250135,-629.32,0.00013287,2]
[352637441,1739212250144,-500.0,0.00013287,2]
[352637442,1739212250154,-500.0,0.00013287,2]
[352637443,1739212250164,-13922.83,0.00013287,2]
[352637444,1739212250173,-804.1,0.00013287,2]
[352637445,1739212250183,-590.4,0.00013287,2]
[352637446,1739212250192,-5523.16,0.00013287,2]
[352637447,1739212250202,-1492.81,0.00013287,2]
[352637448,1739212250211,-519.17,0.00013287,2]
[352637449,1739212250221,-1960.12,0.00013287,2]
[352637450,1739212250231,-790.7,0.00013287,2]
[352637451,1739212250240,-151.0,0.00013287,2]
[352637452,1739212250250,-151.0,0.00013287,2]
[352637453,1739212250260,-151.0,0.00013287,2]
[352637454,1739212250270,-500.0,0.00013287,2]
[352637455,1739212250280,-7568.36,0.00013287,2]
[352637456,1739212250289,-819.41,0.00013287,2]
[352637457,1739212250299,-745.93,0.00013287,2]
[352637458,1739212250309,-151.0,0.00013287,2]
[352637459,1739212250318,-694.34,0.00013287,2]
[352637460,1739212250328,-1287.45,0.00013287,2]
[352637461,1739212250337,-1421.92,0.00013287,2]
[352637462,1739212250347,-151.0,0.00013287,2]
[352637463,1739212250355,-725.42,0.00013287,2]
[352637464,1739212250365,-519.1,0.00013287,2]
[352637465,1739212250374,-3345.59,0.00013287,2]
[352637466,1739212250384,-1562.27,0.00013287,2]
[352637467,1739212250393,-597.04,0.00013287,2]
[352637468,1739212250402,-1519.61,0.00013287,2]
[352637469,1739212250411,-1134.73,0.00013287,2]
[352637470,1739212250421,-500.0,0.00013385,2]
[352637471,1739212250430,-500.0,0.00013424,2]
[352637472,1739212250439,-500.0,0.00013424,2]
[352637473,1739212250449,-500.0,0.00013424,2]
[352637474,1739212250458,-500.0,0.00013424,2]
[352637475,1739212250467,-629.32,0.00013424,2]
[352637476,1739212250477,-608.74,0.00013424,2]
[352637477,1739212250486,-500.0,0.00013424,2]
[352637478,1739212250495,-13922.83,0.00013424,2]
[352637479,1739212250505,-804.1,0.00013424,2]
[352637480,1739212250600,-151.0,0.00013424,2]
[352637481,1739212250610,-590.4,0.00013424,2]
[352637482,1739212250620,-5523.16,0.00013424,2]
[352637483,1739212250630,-1492.81,0.00013424,2]
[352637484,1739212250640,-519.17,0.00013424,2]
[352637485,1739212250649,-1960.12,0.00013424,2]
[352637486,1739212250658,-790.7,0.00013424,2]
[352637487,1739212250668,-500.0,0.00013424,2]
[352637488,1739212250678,-7568.36,0.00013424,2]
[352637489,1739212250688,-819.41,0.00013424,2]
[352637490,1739212250697,-745.93,0.00013424,2]
[352637491,1739212250706,-694.34,0.00013424,2]
[352637492,1739212250716,-1287.45,0.00013424,2]
[352637493,1739212250725,-1421.92,0.00013424,2]
[352637494,1739212250735,-725.42,0.00013424,2]
[352637495,1739212250744,-519.1,0.00013424,2]
[352637496,1739212250754,-3345.59,0.00013424,2]
[352637497,1739212250763,-1562.27,0.00013424,2]
[352637498,1739212250772,-597.04,0.00013424,2]
[352637499,1739212250782,-1519.61,0.00013424,2]
[352637500,1739212250791,-1134.73,0.00013424,2]
[352637501,1739212250802,-151.0,0.000135,2]
[352637502,1739212250812,-6301.14976744,0.0001356,2]
[352637503,1739212250821,-500.0,0.00013561,2]
[352637504,1739212250830,-500.0,0.00013561,2]
[352637505,1739212250839,-500.0,0.00013561,2]
[352637506,1739212250848,-500.0,0.00013561,2]
[352637507,1739212250857,-629.32,0.00013561,2]
[352637508,1739212250867,-151.0,0.00013561,2]
[352637509,1739212250877,-151.0,0.00013561,2]
[352637510,1739212250886,-500.0,0.00013561,2]
[352637511,1739212250896,-13922.83,0.00013561,2]
[352637512,1739212250905,-804.1,0.00013561,2]
[352637513,1739212250915,-590.4,0.00013561,2]
[352637514,1739212250924,-5523.16,0.00013561,2]
[352637515,1739212250934,-1492.81,0.00013561,2]
[352637516,1739212250943,-519.17,0.00013561,2]
[352637517,1739212250952,-1960.12,0.00013561,2]
[352637518,1739212250962,-790.7,0.00013561,2]
[352637519,1739212250971,-500.0,0.00013561,2]
[352637520,1739212250980,-7568.36,0.00013561,2]
[352637521,1739212250990,-819.41,0.00013561,2]
[352637522,1739212250999,-745.93,0.00013561,2]
[352637523,1739212251009,-694.34,0.00013561,2]
[352637524,1739212251018,-1287.45,0.00013561,2]
[352637525,1739212251030,-1421.92,0.00013561,2]
[352637526,1739212251040,-725.42,0.00013561,2]
[352637527,1739212251050,-519.1,0.00013561,2]
[352637528,1739212251060,-3345.59,0.00013561,2]
[352637529,1739212251070,-1562.27,0.00013561,2]
[352637530,1739212251080,-597.04,0.00013561,2]
[352637531,1739212251089,-1519.61,0.00013561,2]
[352637532,1739212251098,-1134.73,0.00013561,2]
[352637533,1739212251109,-500.0,0.00013698,2]
[352637534,1739212251120,-500.0,0.00013698,2]
[352637535,1739212251129,-391.98190579,0.00013698,2]
[352637536,1739212251138,-273.23,0.00013698,2]
[352637537,1739212251147,-629.32,0.00013698,2]
[352637538,1739212251156,-644.40602768,0.00013698,2]
[352637539,1739212251165,-13922.83,0.00013698,2]
[352637540,1739212251174,-804.1,0.00013698,2]
[352637541,1739212251184,-590.4,0.00013698,2]
[352637542,1739212251194,-5523.16,0.00013698,2]
[352637543,1739212251203,-1492.81,0.00013698,2]
[352637544,1739212251213,-519.17,0.00013698,2]
[352637545,1739212251223,-1960.12,0.00013698,2]
[352637546,1739212251233,-790.7,0.00013698,2]
[352637547,1739212251242,-500.0,0.00013698,2]
[352637548,1739212251252,-7568.36,0.00013698,2]
[352637549,1739212251261,-819.41,0.00013698,2]
[352637550,1739212251271,-745.93,0.00013698,2]
[352637551,1739212251280,-694.34,0.00013698,2]
[352637552,1739212251290,-938.61799861,0.00013698,2]
[352637553,1739212251308,-348.83200139,0.00013698,2]
[352637554,1739212251318,-1421.92,0.00013698,2]
[352637555,1739212251327,-725.42,0.00013698,2]
[352637556,1739212251337,-519.1,0.00013698,2]
[352637557,1739212251346,-3345.59,0.00013698,2]
[352637558,1739212251355,-1562.27,0.00013698,2]
[352637559,1739212251364,-597.04,0.00013698,2]
[352637560,1739212251373,-1519.61,0.00013698,2]
[352637561,1739212251383,-1134.73,0.00013698,2]
[352637562,1739212251392,-172.851354,0.00013699,2]
[352637563,1739212251401,-500.0,0.00013699,2]
[352637564,1739212251411,-500.0,0.00013699,2]
[352637565,1739212251420,-500.0,0.00013835,2]
[352637566,1739212251429,-500.0,0.00013835,2]
[352637567,1739212251439,-629.32,0.00013835,2]
[352637568,1739212251448,-13922.83,0.00013835,2]
[352637569,1739212251457,-804.1,0.00013835,2]
[352637570,1739212251467,-590.4,0.00013835,2]
[352637571,1739212251477,-5523.16,0.00013835,2]
[352637572,1739212251487,-1492.81,0.00013835,2]
[352637573,1739212251496,-519.17,0.00013835,2]
[352637574,1739212251506,-1960.12,0.00013835,2]
[352637575,1739212251515,-790.7,0.00013835,2]
[352637576,1739212251524,-500.0,0.00013835,2]
[352637577,1739212251534,-7568.36,0.00013835,2]
[352637578,1739212251543,-819.41,0.00013835,2]
[352637579,1739212251556,-745.93,0.00013835,2]
[352637580,1739212251566,-694.34,0.00013835,2]
[352637581,1739212251575,-1287.45,0.00013835,2]
[352637582,1739212251585,-1421.92,0.00013835,2]
[352637583,1739212251594,-725.42,0.00013835,2]
[352637584,1739212251603,-519.1,0.00013835,2]
[352637585,1739212251612,-3345.59,0.00013835,2]
[352637586,1739212251622,-1562.27,0.00013835,2]
[352637587,1739212251631,-151.0,0.00013835,2]
[352637588,1739212251640,-597.04,0.00013835,2]
[352637589,1739212251650,-1519.61,0.00013835,2]
[352637590,1739212251659,-1134.73,0.00013835,2]
[352637591,1739212251668,-561.54,0.00013972,2]
[352637592,1739212251677,-559.48,0.00013972,2]
[352637593,1739212251687,-629.32,0.00013972,2]
[352637594,1739212251697,-13922.83,0.00013972,2]
[352637595,1739212251706,-804.1,0.00013972,2]
[352637596,1739212251716,-590.4,0.00013972,2]
[352637597,1739212251725,-5523.16,0.00013972,2]
[352637598,1739212251735,-1492.81,0.00013972,2]
[352637599,1739212251744,-519.17,0.00013972,2]
[352637600,1739212251754,-1960.12,0.00013972,2]
[352637601,1739212251764,-790.7,0.00013972,2]
[352637602,1739212251773,-621.25246229,0.00013972,2]
[352637603,1739212251783,-7568.36,0.00013972,2]
[352637604,1739212251793,-819.41,0.00013972,2]
[352637605,1739212251808,-745.93,0.00013972,2]
[352637606,1739212251817,-694.34,0.00013972,2]
[352637607,1739212251827,-1287.45,0.00013972,2]
[352637608,1739212251836,-1421.92,0.00013972,2]
[352637609,1739212251845,-725.42,0.00013972,2]
[352637610,1739212251854,-519.1,0.00013972,2]
[352637611,1739212251863,-3345.59,0.00013972,2]
[352637612,1739212251872,-1562.27,0.00013972,2]
[352637613,1739212251881,-597.04,0.00013972,2]
[352637614,1739212251890,-1519.61,0.00013972,2]
[352637615,1739212251899,-1134.73,0.00013972,2]
[352637616,1739212251908,-505.0,0.00014,4]
[352637617,1739212251918,-189.902,0.00014086,2]
[352637618,1739212251927,-151.0,0.000141,2]
[352637619,1739212251936,-151.0,0.000141,2]
[352637620,1739212251945,-151.0,0.000141,2]
[352637621,1739212251954,-151.0,0.000141,2]
[352637622,1739212251963,-629.55,0.00014109,2]
[352637623,1739212251972,-13923.0494751,0.00014109,2]
[352637624,1739212251981,-804.29,0.00014109,2]
[352637625,1739212251991,-590.5,0.00014109,2]
[352637626,1739212252000,-5523.23810944,0.00014109,2]
[352637627,1739212252010,-1493.0014262,0.00014109,2]
[352637628,1739212252019,-519.4,0.00014109,2]
[352637629,1739212252031,-1960.31603164,0.00014109,2]
[352637630,1739212252041,-790.74788108,0.00014109,2]
[352637631,1739212252052,-7568.38126317,0.00014109,2]
[352637632,1739212252061,-819.61,0.00014109,2]
[352637633,1739212252071,-746.04,0.00014109,2]
[352637634,1739212252082,-694.40377349,0.00014109,2]
[352637635,1739212252091,-1287.52,0.00014109,2]
[352637636,1739212252100,-1422.0,0.00014109,2]
[352637637,1739212252111,-725.5,0.00014109,2]
[352637638,1739212252120,-519.32,0.00014109,2]
[352637639,1739212252129,-3345.61726669,0.00014109,2]
[352637640,1739212252139,-1562.49118429,0.00014109,2]
[352637641,1739212252148,-597.11,0.00014109,2]
[352637642,1739212252157,-1519.66,0.00014109,2]
[352637643,1739212252166,-1134.73,0.00014109,2]
[352637644,1739212252175,-1000.0,0.00014247,2]
[352637645,1739212252184,-592.38746212,0.00014247,2]
[352637646,1739212252193,-396.0,0.00014257,2]
[352637647,1739212252203,-551.5264753,0.00014446,2]
[352637648,1739212252212,-1564.41,0.000145,2]
[352637649,1739212252222,-551.5264753,0.00014546,2]
[352637650,1739212252230,-551.5264753,0.00014646,2]
[352637651,1739212252239,-151.0,0.000147,2]
[352637652,1739212252248,-551.5264753,0.00014746,2]
[352637653,1739212252258,-551.5264753,0.00014846,2]
[352637654,1739212252267,-551.5264753,0.00014946,2]
[352637655,1739212252276,-151.0,0.00015018,2]
[352637656,1739212252285,-151.0,0.00015018,2]
[352637657,1739212252294,-151.0,0.00015018,2]
[352637658,1739212252306,-551.5264753,0.00015046,2]
[352637659,1739212252316,-166.0,0.00015068,2]
[352637660,1739212252325,-551.5264753,0.00015146,2]
[352637661,1739212252334,-551.5264753,0.00015246,2]
[352637662,1739212252343,-1500.0,0.00015248,2]
[352637663,1739212252352,-151.0,0.000153,2]
[352637664,1739212252361,-551.5264753,0.00015346,2]
[352637665,1739212252370,-551.5264753,0.00015446,2]
[352637666,1739212252379,-505.0,0.000155,5]
[352637667,1739212252388,-551.5264753,0.00015546,2]
[352637668,1739212252398,-551.5264753,0.00015646,2]
[352637669,1739212252407,-551.5264753,0.00015746,2]
[352637670,1739212252416,-551.5264753,0.00015846,2]
[352637671,1739212252425,-151.0,0.000159,2]
[352637672,1739212252435,-551.5264753,0.00015946,2]
[352637673,1739212252444,-490757.10735588,0.00016,2]
[352637674,1739212252453,-500.715,0.00016023,2]
[352637675,1739212252462,-551.5264753,0.00016046,2]
[352637676,1739212252472,-500.0,0.00016125,2]
[352637677,1739212252481,-551.5264753,0.00016146,2]
[352637678,1739212252490,-631.86,0.00016164,2]
[352637679,1739212252499,-551.5264753,0.00016246,2]
[352637680,1739212252508,-153.944,0.0001632,2]
[352637681,1739212252517,-551.5264753,0.00016346,2]
[352637682,1739212252526,-500.0,0.00016438,2]
[352637683,1739212252535,-500.0,0.00016438,2]
[352637684,1739212252544,-500.0,0.00016438,2]
[352637685,1739212252555,-551.5264753,0.00016446,2]
[352637686,1739212252563,-317.0,0.000165,2]
[352637687,1739212252573,-248.05765348,0.00016546,2]
[352637688,1739212252583,-551.5264753,0.00016546,2]
[352637689,1739212252592,-168.0,0.00016593,2]
[352637690,1739212252601,-169.94,0.00016593,2]
[352637691,1739212252611,-166.0,0.00016593,2]
[352637692,1739212252619,-166.0,0.00016593,2]
[352637693,1739212252629,-166.0,0.00016593,2]
[352637694,1739212252638,-166.26,0.00016593,2]
[352637695,1739212252648,-151.0,0.000166,2]
[352637696,1739212252657,-551.5264753,0.00016646,2]
[352637697,1739212252667,-551.5264753,0.00016746,2]
[352637698,1739212252676,-551.5264753,0.00016846,2]
[352637699,1739212252686,-13267.29691025,0.00016875,2]
[352637700,1739212252695,-551.5264753,0.00016946,2]
[352637701,1739212252705,-500.0,0.00016986,3]
[352637702,1739212252714,-505.0,0.00017,6]
[352637703,1739212252724,-1929.74558024,0.00017,120]